fUST/lending_fUST_20240802
["ID","MTS","AMOUNT","RATE_DAILY","PERIOD"]
[333892055,1722605440922,-500.0,0.00013938,2]
[333892056,1722605440932,-856.93944862,0.00013938,2]
[333892095,1722605443276,-325.94000001,0.00013938,2]
[333892097,1722605443287,-1164.10055137,0.00013938,2]
[333892099,1722605443297,-500.0,0.00013938,2]
[333892101,1722605443307,-500.0,0.00013938,2]
[333892103,1722605443317,-500.0,0.00013938,2]
[333892105,1722605443326,-500.0,0.00013938,2]
[333892107,1722605443335,-500.0,0.00013946,2]
[333892109,1722605443345,-461.98900914,0.00013946,2]
[333892110,1722605443355,-500.0,0.00013946,2]
[333892112,1722605443364,-500.0,0.00013946,2]
[333892113,1722605443373,-500.0,0.00013946,2]
[333892114,1722605443383,-1085.04968815,0.00013946,2]
[333892241,1722606570145,-609.24135516,0.00010858,2]
[333892265,1722606632906,-6639.9835,0.00010758,2]
[333892270,1722606632955,-4039.34952236,0.00010758,2]
[333892272,1722606632965,-645.07613631,0.00010858,2]
[333892274,1722606632974,-300.0,0.00010958,2]
[333892276,1722606632985,-300.0,0.00010958,2]
[333892278,1722606632995,-949.35,0.00010959,2]
[333892280,1722606633005,-920.77,0.00010959,2]
[333892282,1722606633014,-4845.90828233,0.00011406,2]
[333892322,1722606638707,-15573.09272445,0.00011406,2]
[333892325,1722606638719,-473.21000055,0.00011406,2]
[333893924,1722606712746,240.95511553,9.999e-05,2]
[333893925,1722606714805,162.34880224,9.999e-05,2]
[333893926,1722606717682,156.62454437,9.999e-05,2]
[333893927,1722606718231,404.14300874,9.999e-05,2]
[333893928,1722606720658,288.23560711,9.999e-05,2]
[333893929,1722606723555,162.35915212,9.999e-05,2]
[333893930,1722606729254,201.58846675,9.999e-05,2]
[333893931,1722606737473,473.10809626,9.999e-05,2]
[333893932,1722606738173,188.04294313,9.999e-05,2]
[333893933,1722606745082,848.96464521,9.999e-05,2]
[333893934,1722606753966,160.00381439,9.999e-05,2]
[333893935,1722606754006,521.86930577,9.999e-05,2]
[333893936,1722606754577,157.69808826,9.999e-05,2]
[333893937,1722606760030,567.70648841,9.999e-05,2]
[333893938,1722606761086,154.91692567,9.999e-05,2]
[333893939,1722606764320,663.78880537,9.999e-05,2]
[333893940,1722606779893,277.26379618,9.999e-05,2]
[333893941,1722606780964,404.47935249,9.999e-05,2]
[333893944,1722607294365,154.83742071,9.999e-05,2]
[333893945,1722607377862,154.83742071,9.999e-05,2]
[333893947,1722607468361,154.83742071,9.999e-05,2]
[333893949,1722607568489,154.83742071,9.999e-05,2]
[333893950,1722607592960,10000.0,0.00025,60]
[333893951,1722607680411,154.83742071,9.999e-05,2]
[333893956,1722607755118,-564.89014612,0.0001103,2]
[333893977,1722607783384,154.83742071,9.999e-05,2]
[333894044,1722607831854,-250.0,0.00010476,2]
[333894046,1722607831864,-250.0,0.00010505,2]
[333894048,1722607831873,-250.0,0.00010534,2]
[333894050,1722607831883,-250.0,0.00010563,2]
[333894052,1722607831891,-250.0,0.00010591,2]
[333894054,1722607831901,-250.0,0.0001062,2]
[333894056,1722607831910,-250.0,0.00010649,2]
[333894058,1722607831919,-250.0,0.00010678,2]
[333894060,1722607831929,-250.0,0.00010706,2]
[333894062,1722607831938,-250.0,0.00010735,2]
[333894065,1722607831947,-250.0,0.00010764,2]
[333894068,1722607831956,-250.0,0.00010792,2]
[333894071,1722607831966,-250.0,0.00010821,2]
[333894073,1722607831976,-250.0,0.0001085,2]
[333894075,1722607831985,-250.0,0.00010879,2]
[333894077,1722607831994,-250.0,0.00010907,2]
[333894079,1722607832007,-250.0,0.00010936,2]
[333894081,1722607832016,-300.0,0.00010958,2]
[333894083,1722607832024,-300.0,0.00010958,2]
[333894085,1722607832034,-767.31,0.00010959,2]
[333894087,1722607832043,-680.46,0.00010959,2]
[333894089,1722607832052,-567.05,0.00010959,2]
[333894091,1722607832062,-472.54,0.00010959,2]
[333894093,1722607832071,-393.78,0.00010959,2]
[333894095,1722607832080,-328.15,0.00010959,2]
[333894097,1722607832089,-250.0,0.00010965,2]
[333894099,1722607832098,-250.0,0.00010994,2]
[333894101,1722607832107,-250.0,0.00011022,2]
[333894103,1722607832116,-357.3445534,0.00011099,2]
[333894104,1722607832125,-24900.0,0.00011116,2]
[333894106,1722607832134,-153.06260706,0.00011188,2]
[333894108,1722607832143,-1147.14195715,0.00011406,2]
[333894110,1722607832152,-1880.40905366,0.00011406,2]
[333894112,1722607832161,-4745.30874335,0.00011715,2]
[333894114,1722607832170,-420.0,0.00012042,2]
[333894116,1722607832179,-420.0,0.00012054,2]
[333894118,1722607832188,-173.71508127,0.0001212,2]
[333894120,1722607832197,-153.0,0.00012178,2]
[333894122,1722607832206,-1384.66835184,0.000129,2]
[333894124,1722607832215,-170.755459,0.00012986,2]
[333894126,1722607832224,-1000.0,0.00013,13]
[333894128,1722607832233,-587.0,0.00013233,2]
[333894130,1722607832242,-587.0,0.00013259,2]
[333894132,1722607832253,-620.00036635,0.00013393,2]
[333894134,1722607832263,-3486.67115206,0.00013489,2]
[333894135,1722607832272,-1410.0,0.00013678,2]
[333894137,1722607832281,-500.0,0.0001369,2]
[333894139,1722607832290,-500.0,0.0001369,2]
[333894141,1722607832299,-500.0,0.0001369,2]
[333894143,1722607832309,-310.31,0.0001369,2]
[333894145,1722607832318,-500.0,0.0001369,2]
[333894147,1722607832327,-311.22,0.0001369,2]
[333894149,1722607832336,-2331.32,0.00013697,2]
[333894151,1722607832346,-500.0,0.00013698,2]
[333894153,1722607832355,-500.0,0.00013698,2]
[333894155,1722607832364,-500.0,0.00013698,2]
[333894157,1722607832373,-500.0,0.00013698,2]
[333894159,1722607832383,-500.0,0.00013698,2]
[333894161,1722607832392,-500.0,0.00013698,2]
[333894163,1722607832401,-500.0,0.00013698,2]
[333894165,1722607832413,-500.0,0.00013698,2]
[333894167,1722607832422,-594.13,0.00013698,2]
[333894169,1722607832431,-1132.78,0.00013698,2]
[333894171,1722607832441,-500.0,0.00013698,2]
[333894173,1722607832451,-1191.98,0.00013698,2]
[333894175,1722607832460,-500.0,0.00013698,2]
[333894177,1722607832469,-500.0,0.00013698,2]
[333894179,1722607832480,-500.0,0.00013698,2]
[333894181,1722607832489,-500.0,0.00013698,2]
[333894183,1722607832499,-408.92,0.00013698,2]
[333894185,1722607832511,-500.0,0.00013698,2]
[333894186,1722607832520,-500.0,0.00013698,2]
[333894187,1722607832529,-500.0,0.00013698,2]
[333894188,1722607832539,-1421.99,0.00013698,2]
[333894189,1722607832548,-500.0,0.00013698,2]
[333894191,1722607832558,-500.0,0.00013698,2]
[333894193,1722607832567,-1875.6,0.00013698,2]
[333894194,1722607832577,-743.84,0.00013698,2]
[333894196,1722607832587,-500.0,0.00013698,2]
[333894197,1722607832596,-500.0,0.00013698,2]
[333894198,1722607832605,-500.0,0.00013698,2]
[333894199,1722607832614,-500.0,0.00013698,2]
[333894200,1722607832624,-747.28,0.00013698,2]
[333894201,1722607832634,-702.15,0.00013698,2]
[333894202,1722607832642,-500.0,0.00013698,2]
[333894203,1722607832651,-500.0,0.00013698,2]
[333894204,1722607832660,-2090.534728,0.00013698,2]
[333894205,1722607832673,-158.655272,0.00013698,2]
[333894206,1722607832682,-500.0,0.00013698,2]
[333894207,1722607832691,-252.044728,0.00013698,2]
[333894209,1722607837821,-273.46,0.00010959,2]
[333894210,1722607837831,-2332.38134463,0.00013678,5]
[333894211,1722607837841,-247.955272,0.00013698,2]
[333894212,1722607837851,-234.83,0.00013698,2]
[333894213,1722607837861,-500.0,0.00013698,2]
[333894214,1722607837871,-500.0,0.00013698,2]
[333894215,1722607837880,-500.0,0.00013698,2]
[333894216,1722607837889,-303.04,0.00013698,2]
[333894217,1722607837899,-500.0,0.00013698,2]
[333894218,1722607837909,-500.0,0.00013698,2]
[333894219,1722607837919,-400.66,0.00013698,2]
[333894220,1722607837929,-500.0,0.00013698,2]
[333894221,1722607837939,-500.0,0.00013698,2]
[333894222,1722607837950,-500.0,0.00013698,2]
[333894223,1722607837959,-500.0,0.00013698,2]
[333894224,1722607837969,-500.0,0.00013698,2]
[333894225,1722607837978,-682.68,0.00013698,2]
[333894226,1722607837988,-3107.32,0.00013698,2]
[333894227,1722607837999,-500.0,0.00013698,2]
[333894228,1722607838011,-4149.0,0.000138,2]
[333894229,1722607838021,-3291.95879794,0.00013806,2]
[333894230,1722607838030,-4752.54308318,0.00013828,2]
[333894250,1722607839868,-3490.44702973,0.00013828,2]
[333894315,1722607842999,-227.88,0.00010959,2]
[333894317,1722607843010,-2782.13116721,0.00013828,2]
[333894631,1722607846144,-1044.81267344,0.00013828,2]
[333895560,1722607868834,200.0,0.00027,120]
[333895561,1722607927224,209.09286746,9.999e-05,2]
[333895566,1722608346704,309.53617235,9.999e-05,2]
[333895567,1722608348909,241.43535638,9.999e-05,2]
[333895568,1722608350934,494.15268939,9.999e-05,2]
[333895569,1722608351260,155.58153767,0.0001,2]
[333895570,1722608352528,155.03007539,9.999e-05,2]
[333895571,1722608354759,247.54428856,9.999e-05,2]
[333895572,1722608355882,615.17568774,9.999e-05,2]
[333895573,1722608359569,414.37884758,9.999e-05,2]
[333895574,1722608360257,309.35541452,9.999e-05,2]
[333895575,1722608362140,249.72515193,9.999e-05,2]
[333895576,1722608364361,155.00714358,9.999e-05,2]
[333895577,1722608364781,289.28985245,9.999e-05,2]
[333895578,1722608365152,805.65848734,9.999e-05,2]
[333895579,1722608365521,154.89002311,9.999e-05,2]
[333895580,1722608366318,155.02561971,9.999e-05,2]
[333895581,1722608366789,260.33157747,9.999e-05,2]
[333895582,1722608367157,201.99778762,9.999e-05,2]
[333895583,1722608367191,581.70781646,9.999e-05,2]
[333895584,1722608367316,204.57207469,9.999e-05,2]
[333895585,1722608367538,267.35906926,9.999e-05,2]
[333895586,1722608367931,343.51591076,9.999e-05,2]
[333895587,1722608368454,155.06716053,9.999e-05,2]
[333895588,1722608369075,160.58259148,9.999e-05,2]
[333895589,1722608369350,403.6719504,9.999e-05,2]
[333895590,1722608369801,154.91286462,9.999e-05,2]
[333895591,1722608369903,890.19748092,9.999e-05,2]
[333895592,1722608370098,603.39156568,9.999e-05,2]
[333895593,1722608370225,154.82195475,9.999e-05,2]
[333895594,1722608372648,166.38808278,9.999e-05,2]
[333895595,1722608374400,292.29573944,9.999e-05,2]
[333895596,1722608375380,155.02087107,9.999e-05,2]
[333895597,1722608376168,849.18218214,9.999e-05,2]
[333895598,1722608376752,154.86314301,9.999e-05,2]
[333895599,1722608376968,182.89406574,9.999e-05,2]
[333895600,1722608378672,588.23943005,9.999e-05,2]
[333895601,1722608378868,307.63818843,9.999e-05,2]
[333895602,1722608380501,154.84231435,9.999e-05,2]
[333895603,1722608381212,250.27905086,9.999e-05,2]
[333895604,1722608381421,154.82195475,0.0001,2]
[333895605,1722608382035,404.51278902,9.999e-05,2]
[333895606,1722608382304,532.78015433,9.999e-05,2]
[333895607,1722608382984,519.46703512,9.999e-05,2]
[333895608,1722608388186,155.01664346,9.999e-05,2]
[333895609,1722608388452,166.04830223,9.999e-05,2]
[333895610,1722608389147,309.6439095,9.999e-05,2]
[333895611,1722608391406,664.12635535,9.999e-05,2]
[333895612,1722608393542,242.43840163,9.999e-05,2]
[333895613,1722608397246,942.37062895,9.999e-05,2]
[333895614,1722608397357,159.83522761,9.999e-05,2]
[333895615,1722608399534,2775.58108794,9.999e-05,2]
[333895616,1722608401306,154.84072239,9.999e-05,2]
[333895617,1722608402631,212.12979202,9.999e-05,2]
[333895620,1722608451507,245.54203643,9.999e-05,2]
[333895621,1722608454013,154.91162192,9.999e-05,2]
[333895622,1722608459886,997.68581401,9.999e-05,2]
[333895623,1722608462371,403.6719504,9.999e-05,2]
[333895624,1722608466988,376.7846896,9.999e-05,2]
[333895625,1722608483414,668.28805635,9.999e-05,2]
[333895626,1722608499412,201.22648727,0.0001,2]
[333895627,1722608555961,1629.94046579,0.0001,2]
[333895628,1722608564368,403.94404814,9.999e-05,2]
[333895629,1722608565968,1880.40905366,0.0001,2]
[333895630,1722608582757,225.04706201,0.0001,2]
[333895631,1722608653453,1629.61973037,0.0001,2]
[333895632,1722608659908,542.98825341,9.999e-05,2]
[333895633,1722608668127,1880.40905366,0.0001,2]
[333895634,1722608682973,1880.40905366,0.0001,2]
[333895635,1722608718645,727.403836,9.999e-05,2]
[333895636,1722608743525,544.40261366,9.999e-05,2]
[333895640,1722608829565,539.1682368,9.999e-05,2]
[333895660,1722609032271,-300.0,0.00010958,2]
[333895661,1722609032282,-270.25,0.00010959,2]
[333895662,1722609032294,-225.21,0.00010959,2]
[333895663,1722609032305,-187.67,0.00010959,2]
[333895664,1722609032316,-3041.87,0.00011913,2]
[333895665,1722609032328,-6209.66364229,0.00011913,2]
[333895687,1722609038629,-152.20233911,0.00011913,2]
[333895689,1722609038639,-412.0,0.00012054,2]
[333895690,1722609038650,-161.824869,0.00012055,2]
[333895691,1722609038660,-185.38342513,0.0001212,2]
[333895692,1722609038670,-1694.0133496,0.0001212,2]
[333895693,1722609038682,-11.04639819,0.0001212,2]
[333895694,1722609038693,-1880.40905366,0.00012121,2]
[333895695,1722609038703,-161.824869,0.00012133,2]
[333895696,1722609038712,-161.824869,0.00012212,2]
[333895697,1722609038722,-161.824869,0.0001229,2]
[333895698,1722609038732,-161.824869,0.00012369,2]
[333895699,1722609038742,-161.824869,0.00012447,2]
[333895700,1722609038752,-161.824869,0.00012526,2]
[333895701,1722609038762,-161.824869,0.00012604,2]
[333895702,1722609038772,-161.824869,0.00012683,2]
[333895703,1722609038782,-170.755459,0.00012986,2]
[333895704,1722609038792,-620.00001832,0.0001336,2]
[333895705,1722609038801,-3380.91908311,0.00013495,2]
[333895706,1722609038810,-1211.58480786,0.00013597,2]
[333895707,1722609038819,-3528.70824559,0.00013598,2]
[333895708,1722609038829,-3528.70824557,0.00013658,2]
[333895709,1722609038839,-6348.97886369,0.00013688,2]
[333895721,1722609043181,-23.96290535,0.00010959,2]
[333895722,1722609043194,-132.42709465,0.00010959,2]
[333895723,1722609043205,-6011.56110776,0.00013688,2]
[333895732,1722609046168,-6475.0,0.00013688,2]
[333895738,1722609046236,-66022.69574685,0.00013688,2]
[333895740,1722609046248,-3226.97,0.00013697,2]
[333895742,1722609046258,-4238.18477351,0.00013698,5]
[333895744,1722609046268,-500.0,0.00013698,2]
[333895746,1722609046279,-501.90243565,0.00013698,2]
[333895748,1722609046289,-500.0,0.00013698,2]
[333895750,1722609046298,-500.0,0.00013698,2]
[333895752,1722609046309,-601.92224478,0.00013698,2]
[333895754,1722609046319,-505.39979133,0.00013698,2]
[333895756,1722609046329,-500.0,0.00013698,2]
[333895758,1722609046340,-500.0,0.00013698,2]
[333895761,1722609046350,-500.0,0.00013698,2]
[333895763,1722609046360,-500.0,0.00013698,2]
[333895765,1722609046371,-500.0,0.00013698,2]
[333895767,1722609046381,-500.0,0.00013698,2]
[333895769,1722609046391,-500.0,0.00013698,2]
[333895771,1722609046401,-500.0,0.00013698,2]
[333895773,1722609046411,-500.0,0.00013698,2]
[333895775,1722609046422,-271.06326333,0.00013698,2]
[333895777,1722609046432,-500.0,0.00013698,2]
[333895778,1722609046443,-511.1363515,0.00013698,2]
[333895779,1722609046454,-500.0,0.00013698,2]
[333895780,1722609046464,-500.0,0.00013698,2]
[333895781,1722609046475,-500.0,0.00013698,2]
[333895782,1722609046488,-500.89858288,0.00013698,2]
[333895783,1722609046497,-500.0,0.00013698,2]
[333895784,1722609046507,-500.0,0.00013698,2]
[333895785,1722609046516,-529.9,0.00013698,2]
[333895786,1722609046526,-500.0,0.00013698,2]
[333895787,1722609046536,-513.13697787,0.00013698,2]
[333895788,1722609046545,-500.0,0.00013698,2]
[333895789,1722609046555,-500.0,0.00013698,2]
[333895790,1722609046564,-151.0,0.00013698,2]
[333895791,1722609046575,-151.0,0.00013698,2]
[333895792,1722609046584,-151.0,0.00013698,2]
[333895793,1722609046594,-500.0,0.00013698,2]
[333895794,1722609046603,-151.0,0.00013698,2]
[333895795,1722609046613,-151.0,0.00013698,2]
[333895796,1722609046623,-151.0,0.00013698,2]
[333895797,1722609046633,-151.0,0.00013698,2]
[333895798,1722609046644,-151.0,0.00013698,2]
[333895799,1722609046654,-508.44466777,0.00013698,2]
[333895800,1722609046665,-500.0,0.00013698,2]
[333895801,1722609046675,-151.0,0.00013698,2]
[333895802,1722609046685,-151.0,0.00013698,2]
[333895804,1722609046694,-535.953862,0.00013698,2]
[333895805,1722609046703,-500.0,0.00013698,2]
[333895807,1722609046713,-500.0,0.00013698,2]
[333895808,1722609046722,-500.0,0.00013698,2]
[333895809,1722609046736,-500.0,0.00013698,2]
[333895810,1722609046746,-500.0,0.00013698,2]
[333895811,1722609046756,-379.82178042,0.00013698,2]
[333895812,1722609046766,-500.0,0.00013698,2]
[333895813,1722609046776,-862.75,0.00013698,2]
[333895814,1722609046786,-319.05137873,0.00013698,2]
[333895815,1722609046795,-500.0,0.00013698,2]
[333895816,1722609046805,-500.0,0.00013698,2]
[333895817,1722609046815,-500.0,0.00013698,2]
[333895818,1722609046825,-151.0,0.00013698,2]
[333895819,1722609046835,-151.0,0.00013698,2]
[333895820,1722609046845,-452.61935481,0.00013698,2]
[333895821,1722609046855,-590.88,0.00013698,2]
[333895822,1722609046865,-500.0,0.00013698,2]
[333895823,1722609046875,-500.0,0.00013698,2]
[333895824,1722609046884,-500.0,0.00013698,2]
[333895825,1722609046895,-500.0,0.00013698,2]
[333895826,1722609046904,-500.0,0.00013698,2]
[333895827,1722609046914,-500.0,0.00013698,2]
[333895828,1722609046923,-500.0,0.00013698,2]
[333895829,1722609046933,-509.96349792,0.00013698,2]
[333895830,1722609046943,-500.0,0.00013698,2]
[333895831,1722609046953,-500.0,0.00013698,2]
[333895832,1722609046962,-500.0,0.00013698,2]
[333895833,1722609046972,-151.0,0.00013698,2]
[333895834,1722609046985,-500.0,0.00013698,2]
[333895835,1722609046994,-151.0,0.00013698,2]
[333895836,1722609047003,-151.0,0.00013698,2]
[333895837,1722609047012,-151.0,0.00013698,2]
[333895838,1722609047022,-151.0,0.00013698,2]
[333895839,1722609047031,-500.0,0.00013698,2]
[333895840,1722609047041,-500.0,0.00013698,2]
[333895841,1722609047053,-471.67904458,0.00013698,2]
[333895842,1722609047063,-500.0,0.00013698,2]
[333895843,1722609047073,-500.0,0.00013698,2]
[333895844,1722609047084,-151.0,0.00013698,2]
[333895845,1722609047094,-151.0,0.00013698,2]
[333895846,1722609047104,-151.0,0.00013698,2]
[333895847,1722609047114,-151.0,0.00013698,2]
[333895848,1722609047123,-151.0,0.00013698,2]
[333895849,1722609047133,-151.0,0.00013698,2]
[333895850,1722609047143,-151.0,0.00013698,2]
[333895851,1722609047153,-151.0,0.00013698,2]
[333895852,1722609047166,-151.0,0.00013698,2]
[333895853,1722609047176,-185.972493,0.00013698,2]
[333895854,1722609047186,-500.0,0.00013698,2]
[333895855,1722609047196,-500.0,0.00013698,2]
[333895856,1722609047207,-527.90124887,0.00013698,2]
[333895857,1722609047217,-500.0,0.00013698,2]
[333895858,1722609047227,-151.0,0.00013698,2]
[333895859,1722609047241,-500.0,0.00013698,2]
[333895860,1722609047251,-500.0,0.00013698,2]
[333895861,1722609047260,-500.0,0.00013698,2]
[333895862,1722609047271,-500.0,0.00013698,2]
[333895863,1722609047282,-500.0,0.00013698,2]
[333895864,1722609047291,-500.0,0.00013698,2]
[333895865,1722609047301,-314.79048378,0.00013698,2]
[333895866,1722609047310,-151.0,0.00013698,2]
[333895867,1722609047320,-151.0,0.00013698,2]
[333895868,1722609047329,-151.0,0.00013698,2]
[333895869,1722609047339,-151.0,0.00013698,2]
[333895870,1722609047348,-151.0,0.00013698,2]
[333895871,1722609047359,-500.0,0.00013698,2]
[333895872,1722609047368,-500.0,0.00013698,2]
[333895873,1722609047378,-500.0,0.00013698,2]
[333895874,1722609047388,-729.64,0.00013698,2]
[333895875,1722609047398,-151.0,0.00013698,2]
[333895876,1722609047408,-500.0,0.00013698,2]
[333895877,1722609047418,-500.0,0.00013698,2]
[333895878,1722609047428,-500.0,0.00013698,2]
[333895879,1722609047438,-500.0,0.00013698,2]
[333895880,1722609047448,-500.0,0.00013698,2]
[333895881,1722609047458,-517.93665407,0.00013698,2]
[333895882,1722609047468,-509.56273377,0.00013698,2]
[333895883,1722609047478,-500.0,0.00013698,2]
[333895884,1722609047491,-151.0,0.00013698,2]
[333895885,1722609047501,-151.0,0.00013698,2]
[333895886,1722609047510,-151.738305,0.00013698,2]
[333895887,1722609047520,-500.0,0.00013698,2]
[333895888,1722609047530,-516.43365906,0.00013698,2]
[333895889,1722609047539,-500.0,0.00013698,2]
[333895890,1722609047549,-500.0,0.00013698,2]
[333895891,1722609047559,-2977.84,0.00013698,2]
[333895892,1722609047570,-504.62854778,0.00013698,2]
[333895893,1722609047585,-151.0,0.00013698,2]
[333895894,1722609047606,-151.0,0.00013698,2]
[333895895,1722609047627,-151.0,0.00013698,2]
[333895896,1722609047651,-151.0,0.00013698,2]
[333895897,1722609047673,-231.442722,0.00013698,2]
[333895898,1722609047696,-500.0,0.00013698,2]
[333895899,1722609047719,-500.0,0.00013698,2]
[333895900,1722609047747,-500.0,0.00013698,2]
[333895901,1722609047762,-160.36363548,0.00013698,2]
[333895902,1722609047772,-151.0,0.00013698,2]
[333895903,1722609047784,-1085.58,0.00013698,2]
[333895904,1722609047794,-151.0,0.00013698,2]
[333895905,1722609047804,-500.0,0.00013698,2]
[333895906,1722609047813,-151.0,0.00013698,2]
[333895907,1722609047823,-151.0,0.00013698,2]
[333895908,1722609047833,-194.03931,0.00013698,2]
[333895909,1722609047842,-500.0,0.00013698,2]
[333895910,1722609047852,-517.6431538,0.00013698,2]
[333895911,1722609047862,-151.176751,0.00013698,2]
[333895912,1722609047871,-500.0,0.00013698,2]
[333895913,1722609047881,-500.0,0.00013698,2]
[333895914,1722609047891,-500.0,0.00013698,2]
[333895915,1722609047901,-278.59547819,0.00013698,2]
[333895916,1722609047910,-240.547642,0.00013698,2]
[333895917,1722609047920,-240.547642,0.00013698,2]
[333895918,1722609047930,-240.547642,0.00013698,2]
[333895919,1722609047939,-240.547642,0.00013698,2]
[333895920,1722609047948,-240.547642,0.00013698,2]
[333895921,1722609047958,-240.547642,0.00013698,2]
[333895922,1722609047968,-240.547642,0.00013698,2]
[333895923,1722609047978,-240.547642,0.00013698,2]
[333895924,1722609047995,-240.547642,0.00013698,2]
[333895925,1722609048004,-240.547642,0.00013698,2]
[333895926,1722609048013,-240.547642,0.00013698,2]
[333895927,1722609048022,-240.547642,0.00013698,2]
[333895928,1722609048031,-240.547642,0.00013698,2]
[333895929,1722609048041,-510.36790349,0.00013698,2]
[333895930,1722609048051,-240.547642,0.00013698,2]
[333895931,1722609048062,-240.547642,0.00013698,2]
[333895932,1722609048071,-240.547642,0.00013698,2]
[333895933,1722609048081,-240.547642,0.00013698,2]
[333895934,1722609048091,-240.547642,0.00013698,2]
[333895935,1722609048101,-240.547642,0.00013698,2]
[333895936,1722609048111,-240.547644,0.00013698,2]
[333895937,1722609048121,-500.0,0.00013698,2]
[333895938,1722609048131,-151.0,0.00013698,2]
[333895939,1722609048142,-500.0,0.00013698,2]
[333895940,1722609048153,-151.0,0.00013698,2]
[333895941,1722609048168,-500.0,0.00013698,2]
[333895942,1722609048178,-500.0,0.00013698,2]
[333895943,1722609048188,-500.0,0.00013698,2]
[333895944,1722609048199,-503.19506113,0.00013698,2]
[333895945,1722609048209,-500.0,0.00013698,2]
[333895946,1722609048218,-500.0,0.00013698,2]
[333895947,1722609048228,-500.0,0.00013698,2]
[333895948,1722609048245,-272.96800646,0.00013698,2]
[333895949,1722609048255,-500.0,0.00013698,2]
[333895950,1722609048265,-500.0,0.00013698,2]
[333895951,1722609048275,-500.0,0.00013698,2]
[333895952,1722609048285,-500.0,0.00013698,2]
[333895953,1722609048294,-500.0,0.00013698,2]
[333895954,1722609048304,-189.434948,0.00013698,2]
[333895955,1722609048314,-189.434948,0.00013698,2]
[333895956,1722609048323,-621.18,0.00013698,2]
[333895957,1722609048333,-1142.31,0.00013698,2]
[333895958,1722609048343,-712.85,0.00013698,2]
[333895959,1722609048354,-189.434948,0.00013698,2]
[333895960,1722609048364,-189.434948,0.00013698,2]
[333895961,1722609048374,-189.434948,0.00013698,2]
[333895962,1722609048384,-189.434948,0.00013698,2]
[333895963,1722609048394,-189.434948,0.00013698,2]
[333895964,1722609048404,-189.434948,0.00013698,2]
[333895965,1722609048414,-500.0,0.00013698,2]
[333895966,1722609048424,-189.434948,0.00013698,2]
[333895967,1722609048435,-189.434948,0.00013698,2]
[333895968,1722609048444,-189.434948,0.00013698,2]
[333895969,1722609048454,-189.434948,0.00013698,2]
[333895970,1722609048464,-189.434948,0.00013698,2]
[333895971,1722609048475,-189.434948,0.00013698,2]
[333895972,1722609048487,-500.0,0.00013698,2]
[333895973,1722609048497,-500.0,0.00013698,2]
[333895974,1722609048507,-189.434948,0.00013698,2]
[333895975,1722609048516,-189.434948,0.00013698,2]
[333895976,1722609048526,-189.434948,0.00013698,2]
[333895977,1722609048536,-189.434948,0.00013698,2]
[333895978,1722609048551,-189.434948,0.00013698,2]
[333895979,1722609048566,-500.0,0.00013698,2]
[333895980,1722609048577,-189.434956,0.00013698,2]
[333895981,1722609048587,-500.0,0.00013698,2]
[333895982,1722609048597,-500.0,0.00013698,2]
[333895983,1722609048607,-500.0,0.00013698,2]
[333895984,1722609048616,-500.0,0.00013698,2]
[333895985,1722609048626,-500.0,0.00013698,2]
[333895986,1722609048636,-533.11270245,0.00013698,2]
[333895987,1722609048646,-1362.74,0.00013698,2]
[333895988,1722609048656,-500.0,0.00013698,2]